[Event "Late-Titled-Tuesday-Blitz-September-26-2023"]
[Site "Chess.com"]
[Date "2023.09.26"]
[Round "3"]
[White "PapaieDudu"]
[Black "NowInChess"]
[Result "0-1"]
[WhiteElo "2409"]
[BlackElo "2260"]
[TimeControl "180+1"]
[EndTime "14:28:51 PDT"]
[Termination "NowInChess won by checkmate"]

1. e4 {[%clk 0:02:59.7]} 1... e6 {[%clk 0:03:00.2]} 2. Nf3 {[%clk 0:02:57.2]}
2... d5 {[%clk 0:03:01.1]} 3. e5 {[%clk 0:02:57.9]} 3... c5 {[%clk 0:03:00.7]}
4. b4 {[%clk 0:02:58.2]} 4... cxb4 {[%clk 0:03:00.9]} 5. a3 {[%clk 0:02:58.4]}
5... Nc6 {[%clk 0:03:00.4]} 6. axb4 {[%clk 0:02:58.3]} 6... Bxb4 {[%clk
0:03:01]} 7. c3 {[%clk 0:02:58.8]} 7... Be7 {[%clk 0:03:01.3]} 8. d4 {[%clk
0:02:59.5]} 8... f6 {[%clk 0:03:01.7]} 9. Bd3 {[%clk 0:02:58.5]} 9... Nh6 {[%clk
0:02:54.5]} 10. h4 {[%clk 0:02:48.7]} 10... O-O {[%clk 0:02:51.1]} 11. Na3
{[%clk 0:02:47.6]} 11... Bd7 {[%clk 0:02:34.8]} 12. Nc2 {[%clk 0:02:46.6]} 12...
fxe5 {[%clk 0:02:24.2]} 13. dxe5 {[%clk 0:02:42.7]} 13... Rxf3 {[%clk
0:02:21.8]} 14. Qxf3 {[%clk 0:02:34.3]} 14... Nxe5 {[%clk 0:02:21.9]} 15. Qg3
{[%clk 0:02:29]} 15... Nxd3+ {[%clk 0:02:17.4]} 16. Qxd3 {[%clk 0:02:29.9]}
16... Nf5 {[%clk 0:02:00.7]} 17. g3 {[%clk 0:02:12.8]} 17... Qb6 {[%clk
0:01:33.6]} 18. O-O {[%clk 0:02:07.9]} 18... Bb5 {[%clk 0:01:29.7]} 19. Qd1
{[%clk 0:01:49.1]} 19... Bxf1 {[%clk 0:01:25]} 20. Kxf1 {[%clk 0:01:45.3]} 20...
Bc5 {[%clk 0:01:02.1]} 21. Qe2 {[%clk 0:01:40.8]} 21... Rf8 {[%clk 0:00:38.3]}
22. Bf4 {[%clk 0:01:33.9]} 22... Nxh4 {[%clk 0:00:22.7]} 23. Nd4 {[%clk
0:01:16.6]} 23... Ng6 {[%clk 0:00:16.5]} 24. Qxe6+ {[%clk 0:01:08.5]} 24... Qxe6
{[%clk 0:00:12.1]} 25. Nxe6 {[%clk 0:01:09.4]} 25... Rc8 {[%clk 0:00:12.4]} 26.
Bd2 {[%clk 0:00:49.9]} 26... Bb6 {[%clk 0:00:09.8]} 27. f4 {[%clk 0:00:44.8]}
27... Ne7 {[%clk 0:00:08.7]} 28. g4 {[%clk 0:00:43.6]} 28... Nc6 {[%clk
0:00:07.6]} 29. Ke2 {[%clk 0:00:38.6]} 29... Na5 {[%clk 0:00:07.6]} 30. Rb1
{[%clk 0:00:29.6]} 30... Re8 {[%clk 0:00:07]} 31. f5 {[%clk 0:00:29.8]} 31... g6
{[%clk 0:00:07.2]} 32. Kd3 {[%clk 0:00:29]} 32... gxf5 {[%clk 0:00:07.1]} 33.
gxf5 {[%clk 0:00:29.5]} 33... Nc4 {[%clk 0:00:06.6]} 34. Rg1+ {[%clk 0:00:29.6]}
34... Kh8 {[%clk 0:00:04]} 35. Bh6 {[%clk 0:00:28.2]} 35... Bxg1 {[%clk
0:00:03.6]} 36. Ng5 {[%clk 0:00:17.6]} 36... Ne5+ {[%clk 0:00:03.5]} 37. Kc2
{[%clk 0:00:15.7]} 37... Kg8 {[%clk 0:00:03.8]} 38. f6 {[%clk 0:00:14.8]} 38...
Nf7 {[%clk 0:00:03.8]} 39. Nf3 {[%clk 0:00:08.8]} 39... Nxh6 {[%clk 0:00:03.7]}
40. Nxg1 {[%clk 0:00:08.5]} 40... Rf8 {[%clk 0:00:03.9]} 41. Ne2 {[%clk
0:00:08.1]} 41... Rxf6 {[%clk 0:00:04.8]} 42. Nd4 {[%clk 0:00:08.6]} 42... Rf2+
{[%clk 0:00:04.9]} 43. Kb3 {[%clk 0:00:08.7]} 43... Nf5 {[%clk 0:00:05.3]} 44.
Nb5 {[%clk 0:00:08.9]} 44... a6 {[%clk 0:00:04.9]} 45. Nc7 {[%clk 0:00:09.3]}
45... h5 {[%clk 0:00:04.6]} 46. Nxd5 {[%clk 0:00:09.8]} 46... h4 {[%clk
0:00:04.4]} 47. Nf6+ {[%clk 0:00:09.7]} 47... Kf7 {[%clk 0:00:04.6]} 48. Ne4
{[%clk 0:00:10.4]} 48... Rf4 {[%clk 0:00:04.5]} 49. Ng5+ {[%clk 0:00:08.5]}
49... Kg6 {[%clk 0:00:03.9]} 50. Nh3 {[%clk 0:00:09.2]} 50... Rf3 {[%clk
0:00:04.4]} 51. Ng1 {[%clk 0:00:09.9]} 51... Rg3 {[%clk 0:00:04.6]} 52. Ne2
{[%clk 0:00:10.6]} 52... Rg4 {[%clk 0:00:04.8]} 53. c4 {[%clk 0:00:09.8]} 53...
h3 {[%clk 0:00:05]} 54. Kc3 {[%clk 0:00:08.3]} 54... h2 {[%clk 0:00:04.8]} 55.
Kb4 {[%clk 0:00:08.4]} 55... h1=Q {[%clk 0:00:04.5]} 56. Ka5 {[%clk 0:00:07.5]}
56... Qa1+ {[%clk 0:00:04.2]} 57. Kb6 {[%clk 0:00:08.1]} 57... Qb2+ {[%clk
0:00:04.1]} 58. Ka7 {[%clk 0:00:08.6]} 58... Qxe2 {[%clk 0:00:04.7]} 59. c5
{[%clk 0:00:09.4]} 59... Qe3 {[%clk 0:00:04.9]} 60. Kb6 {[%clk 0:00:07.1]} 60...
Ne7 {[%clk 0:00:04.1]} 61. Ka7 {[%clk 0:00:03]} 61... Qxc5+ {[%clk 0:00:05]} 62.
Kb8 {[%clk 0:00:03.4]} 62... Kf5 {[%clk 0:00:04.3]} 63. Ka8 {[%clk 0:00:03.8]}
63... Rg8+ {[%clk 0:00:04.5]} 64. Kxb7 {[%clk 0:00:03.6]} 64... a5 {[%clk
0:00:04.7]} 65. Ka6 {[%clk 0:00:04.5]} 65... Ra8+ {[%clk 0:00:04.4]} 66. Kb7
{[%clk 0:00:05.4]} 66... Rb8+ {[%clk 0:00:04.4]} 67. Kxb8 {[%clk 0:00:05]} 67...
a4 {[%clk 0:00:04.9]} 68. Kb7 {[%clk 0:00:05.3]} 68... a3 {[%clk 0:00:05.6]} 69.
Kb8 {[%clk 0:00:06.2]} 69... a2 {[%clk 0:00:06.2]} 70. Kb7 {[%clk 0:00:07.1]}
70... a1=Q {[%clk 0:00:06.6]} 71. Kb8 {[%clk 0:00:08]} 71... Qb1+ {[%clk
0:00:06.9]} 72. Ka8 {[%clk 0:00:07.7]} 72... Qa3# {[%clk 0:00:07.8]} 0-1

[Event "Late-Titled-Tuesday-Blitz-September-26-2023"]
[Site "Chess.com"]
[Date "2023.09.26"]
[Round "3"]
[White "Goryachkina"]
[Black "whitemirrorninja"]
[Result "1/2-1/2"]
[WhiteElo "2652"]
[BlackElo "2472"]
[TimeControl "180+1"]
[EndTime "14:29:07 PDT"]
[Termination "Game drawn - insufficient material"]

1. e4 {[%clk 0:02:59.8]} 1... c5 {[%clk 0:02:58.6]} 2. Nf3 {[%clk 0:02:59.8]}
2... a6 {[%clk 0:02:56.5]} 3. c4 {[%clk 0:02:58.1]} 3... Nc6 {[%clk 0:02:54.9]}
4. d4 {[%clk 0:02:54.1]} 4... cxd4 {[%clk 0:02:55.8]} 5. Nxd4 {[%clk 0:02:54.1]}
5... e5 {[%clk 0:02:56.5]} 6. Nb3 {[%clk 0:02:48.1]} 6... Nf6 {[%clk 0:02:54.1]}
7. Bd3 {[%clk 0:02:47.5]} 7... a5 {[%clk 0:02:50.5]} 8. Be3 {[%clk 0:02:39]}
8... a4 {[%clk 0:02:47.3]} 9. Nc1 {[%clk 0:02:38.5]} 9... Bb4+ {[%clk
0:02:40.1]} 10. Nd2 {[%clk 0:02:33.4]} 10... a3 {[%clk 0:02:38.3]} 11. bxa3
{[%clk 0:02:23.1]} 11... Rxa3 {[%clk 0:02:38]} 12. O-O {[%clk 0:02:22.4]} 12...
O-O {[%clk 0:02:34.1]} 13. c5 {[%clk 0:02:17]} 13... d6 {[%clk 0:02:31.5]} 14.
Nc4 {[%clk 0:02:14.7]} 14... Rc3 {[%clk 0:02:03.6]} 15. cxd6 {[%clk 0:01:56.6]}
15... Nxe4 {[%clk 0:01:52.9]} 16. Bxe4 {[%clk 0:01:53.7]} 16... Rxc4 {[%clk
0:01:52.8]} 17. Bxh7+ {[%clk 0:01:49.1]} 17... Kxh7 {[%clk 0:01:49.7]} 18. Qd3+
{[%clk 0:01:48.8]} 18... f5 {[%clk 0:01:42.1]} 19. Qxc4 {[%clk 0:01:47.7]} 19...
f4 {[%clk 0:01:41.8]} 20. Bc5 {[%clk 0:01:16.9]} 20... Bxc5 {[%clk 0:01:40.1]}
21. Qxc5 {[%clk 0:01:17.2]} 21... f3 {[%clk 0:01:40.7]} 22. Nb3 {[%clk
0:00:55.4]} 22... Qg5 {[%clk 0:01:31.9]} 23. g3 {[%clk 0:00:55.4]} 23... Qg4
{[%clk 0:01:21.7]} 24. Kh1 {[%clk 0:00:43.8]} 24... Qh3 {[%clk 0:01:17.1]} 25.
Rg1 {[%clk 0:00:43.3]} 25... Rf6 {[%clk 0:01:12.5]} 26. Qe3 {[%clk 0:00:21.9]}
26... Rh6 {[%clk 0:01:05.7]} 27. Qxh6+ {[%clk 0:00:21]} 27... Qxh6 {[%clk
0:01:03.8]} 28. Rad1 {[%clk 0:00:20.8]} 28... Bh3 {[%clk 0:00:58.3]} 29. d7
{[%clk 0:00:10.3]} 29... Bg2+ {[%clk 0:00:58]} 30. Rxg2 {[%clk 0:00:10.3]} 30...
fxg2+ {[%clk 0:00:58.9]} 31. Kxg2 {[%clk 0:00:10.8]} 31... Qf6 {[%clk
0:00:55.3]} 32. Nc5 {[%clk 0:00:08.5]} 32... Nd4 {[%clk 0:00:50.7]} 33. Rd3
{[%clk 0:00:06.1]} 33... Qc6+ {[%clk 0:00:45.7]} 34. f3 {[%clk 0:00:04.7]} 34...
Qxc5 {[%clk 0:00:30.7]} 35. d8=Q {[%clk 0:00:04.5]} 35... Qc2+ {[%clk
0:00:30.6]} 36. Kh3 {[%clk 0:00:04.8]} 36... Qxd3 {[%clk 0:00:30.9]} 37. Qh4+
{[%clk 0:00:04.8]} 37... Kg6 {[%clk 0:00:28.7]} 38. Qg4+ {[%clk 0:00:04.1]}
38... Kf6 {[%clk 0:00:26.8]} 39. Qh4+ {[%clk 0:00:04.2]} 39... Kf7 {[%clk
0:00:24.1]} 40. Qh5+ {[%clk 0:00:04.3]} 40... Qg6 {[%clk 0:00:19.7]} 41. Qxe5
{[%clk 0:00:04.2]} 41... Qe6+ {[%clk 0:00:16.7]} 42. Qxe6+ {[%clk 0:00:03.7]}
42... Kxe6 {[%clk 0:00:17.6]} 43. Kg4 {[%clk 0:00:04.3]} 43... Nb5 {[%clk
0:00:17]} 44. f4 {[%clk 0:00:04.5]} 44... Nc3 {[%clk 0:00:17.4]} 45. Kg5 {[%clk
0:00:04]} 45... Kf7 {[%clk 0:00:14.4]} 46. a3 {[%clk 0:00:03.6]} 46... Nb5
{[%clk 0:00:13.6]} 47. a4 {[%clk 0:00:03.3]} 47... Nc3 {[%clk 0:00:11.9]} 48. a5
{[%clk 0:00:03.8]} 48... Ne4+ {[%clk 0:00:12]} 49. Kf5 {[%clk 0:00:04]} 49...
Nd6+ {[%clk 0:00:12.5]} 50. Ke5 {[%clk 0:00:03.8]} 50... Nc4+ {[%clk 0:00:12.6]}
51. Kd5 {[%clk 0:00:04.3]} 51... Nxa5 {[%clk 0:00:13]} 52. Kc5 {[%clk
0:00:04.9]} 52... Nc6 {[%clk 0:00:12.5]} 53. Kb6 {[%clk 0:00:05.2]} 53... Nd8
{[%clk 0:00:13.2]} 54. g4 {[%clk 0:00:04.8]} 54... Ke6 {[%clk 0:00:13.1]} 55. h4
{[%clk 0:00:04.8]} 55... Kd5 {[%clk 0:00:12.7]} 56. h5 {[%clk 0:00:04.3]} 56...
Ke6 {[%clk 0:00:11.1]} 57. g5 {[%clk 0:00:03.8]} 57... Kf5 {[%clk 0:00:10.9]}
58. h6 {[%clk 0:00:03.8]} 58... gxh6 {[%clk 0:00:10.9]} 59. gxh6 {[%clk
0:00:04.2]} 59... Kg6 {[%clk 0:00:11.5]} 60. Kc7 {[%clk 0:00:04.6]} 60... Kxh6
{[%clk 0:00:11.4]} 61. Kxd8 {[%clk 0:00:04.5]} 61... b5 {[%clk 0:00:10.9]} 62.
Ke7 {[%clk 0:00:04.9]} 62... b4 {[%clk 0:00:02]} 63. f5 {[%clk 0:00:04.9]} 63...
b3 {[%clk 0:00:02.5]} 64. f6 {[%clk 0:00:05.5]} 64... b2 {[%clk 0:00:02.9]} 65.
f7 {[%clk 0:00:06.2]} 65... b1=Q {[%clk 0:00:03.1]} 66. f8=Q+ {[%clk 0:00:06.8]}
66... Kg6 {[%clk 0:00:03.7]} 67. Qf6+ {[%clk 0:00:07.2]} 67... Kh5 {[%clk
0:00:03.7]} 68. Qf7+ {[%clk 0:00:07.4]} 68... Kg4 {[%clk 0:00:03.5]} 69. Qg7+
{[%clk 0:00:07.3]} 69... Kh4 {[%clk 0:00:03.8]} 70. Qf6+ {[%clk 0:00:07.1]}
70... Kg4 {[%clk 0:00:03.9]} 71. Qe6+ {[%clk 0:00:06.9]} 71... Kh4 {[%clk
0:00:04.1]} 72. Qf6+ {[%clk 0:00:07.3]} 72... Kg4 {[%clk 0:00:04.5]} 73. Qe6+
{[%clk 0:00:07.8]} 73... Qf5 {[%clk 0:00:04.1]} 74. Qxf5+ {[%clk 0:00:08.1]}
74... Kxf5 {[%clk 0:00:04.5]} 1/2-1/2

[Event "Late-Titled-Tuesday-Blitz-September-26-2023"]
[Site "Chess.com"]
[Date "2023.09.26"]
[Round "3"]
[White "infinitegiantkiller"]
[Black "SlipperySpeedster"]
[Result "1-0"]
[WhiteElo "2456"]
[BlackElo "2617"]
[TimeControl "180+1"]
[EndTime "14:29:18 PDT"]
[Termination "infinitegiantkiller won by resignation"]

1. Nf3 {[%clk 0:03:00.6]} 1... d5 {[%clk 0:02:59]} 2. g3 {[%clk 0:03:01.5]} 2...
Nf6 {[%clk 0:02:58]} 3. Bg2 {[%clk 0:03:02.4]} 3... Bg4 {[%clk 0:02:57.7]} 4.
O-O {[%clk 0:03:03]} 4... c6 {[%clk 0:02:57]} 5. b3 {[%clk 0:03:03]} 5... Nbd7
{[%clk 0:02:55.3]} 6. Bb2 {[%clk 0:03:02.9]} 6... g6 {[%clk 0:02:55.1]} 7. d4
{[%clk 0:03:02]} 7... Bg7 {[%clk 0:02:54.6]} 8. Nbd2 {[%clk 0:03:02.3]} 8... O-O
{[%clk 0:02:53.7]} 9. c4 {[%clk 0:03:01.9]} 9... Ne4 {[%clk 0:02:53.3]} 10. Nxe4
{[%clk 0:02:52.4]} 10... dxe4 {[%clk 0:02:53.4]} 11. Ne5 {[%clk 0:02:46.5]}
11... Nxe5 {[%clk 0:02:48.6]} 12. dxe5 {[%clk 0:02:47.4]} 12... Qa5 {[%clk
0:02:48.1]} 13. Bxe4 {[%clk 0:02:39.2]} 13... Bxe5 {[%clk 0:02:45.2]} 14. Qc2
{[%clk 0:02:35.8]} 14... Rad8 {[%clk 0:02:43]} 15. Bxe5 {[%clk 0:02:28]} 15...
Qxe5 {[%clk 0:02:42]} 16. Rad1 {[%clk 0:02:27.6]} 16... Rd6 {[%clk 0:02:25.5]}
17. Rxd6 {[%clk 0:02:25.5]} 17... exd6 {[%clk 0:02:26.4]} 18. Rd1 {[%clk
0:02:10.1]} 18... Re8 {[%clk 0:02:24.5]} 19. Bf3 {[%clk 0:01:58.8]} 19... Bxf3
{[%clk 0:02:21.2]} 20. exf3 {[%clk 0:01:59.7]} 20... Re6 {[%clk 0:02:21.1]} 21.
Kg2 {[%clk 0:01:57.4]} 21... Kg7 {[%clk 0:02:16.3]} 22. Rd2 {[%clk 0:01:51]}
22... h5 {[%clk 0:02:13.2]} 23. h4 {[%clk 0:01:49.7]} 23... Qf6 {[%clk
0:02:03.8]} 24. Re2 {[%clk 0:01:47.6]} 24... Rxe2 {[%clk 0:02:01.3]} 25. Qxe2
{[%clk 0:01:48.5]} 25... Qe5 {[%clk 0:02:01.7]} 26. Qxe5+ {[%clk 0:01:47.9]}
26... dxe5 {[%clk 0:02:01.3]} 27. Kf1 {[%clk 0:01:47.6]} 27... Kf6 {[%clk
0:02:01.1]} 28. Ke2 {[%clk 0:01:47.9]} 28... Ke6 {[%clk 0:02:01.5]} 29. Ke3
{[%clk 0:01:47.1]} 29... Kd6 {[%clk 0:02:01.5]} 30. b4 {[%clk 0:01:46.6]} 30...
b5 {[%clk 0:02:00.1]} 31. cxb5 {[%clk 0:01:46.1]} 31... cxb5 {[%clk 0:01:59.7]}
32. f4 {[%clk 0:01:39.4]} 32... f6 {[%clk 0:01:15.9]} 33. f3 {[%clk 0:01:21.9]}
33... exf4+ {[%clk 0:01:05.1]} 34. Kxf4 {[%clk 0:01:21.3]} 34... Kd5 {[%clk
0:01:05.2]} 35. g4 {[%clk 0:01:21.1]} 35... Kc4 {[%clk 0:00:50.5]} 36. g5 {[%clk
0:00:28.8]} 36... fxg5+ {[%clk 0:00:24.4]} 37. Kxg5 {[%clk 0:00:28.6]} 37...
Kxb4 {[%clk 0:00:25]} 38. Kxg6 {[%clk 0:00:28]} 38... Ka3 {[%clk 0:00:25.6]} 39.
f4 {[%clk 0:00:28.5]} 39... Kxa2 {[%clk 0:00:25.7]} 40. f5 {[%clk 0:00:29]}
40... b4 {[%clk 0:00:26.4]} 41. f6 {[%clk 0:00:29.6]} 41... b3 {[%clk
0:00:27.3]} 42. f7 {[%clk 0:00:30.2]} 42... b2 {[%clk 0:00:28.2]} 43. f8=Q
{[%clk 0:00:30.5]} 43... b1=Q+ {[%clk 0:00:29.1]} 44. Kxh5 {[%clk 0:00:29.5]}
44... Qb5+ {[%clk 0:00:27.4]} 45. Kg6 {[%clk 0:00:27.1]} 45... a5 {[%clk
0:00:24.9]} 46. h5 {[%clk 0:00:26.7]} 46... Qd3+ {[%clk 0:00:23.3]} 47. Qf5
{[%clk 0:00:26.2]} 47... Qg3+ {[%clk 0:00:22.6]} 48. Kf6 {[%clk 0:00:25.2]}
48... Qc3+ {[%clk 0:00:19]} 49. Kf7 {[%clk 0:00:21.4]} 49... a4 {[%clk 0:00:19]}
50. h6 {[%clk 0:00:20.6]} 50... a3 {[%clk 0:00:19.3]} 51. h7 {[%clk 0:00:19.7]}
51... Kb2 {[%clk 0:00:19.4]} 52. Qf2+ {[%clk 0:00:10.2]} 52... Kb3 {[%clk
0:00:18.3]} 53. Qb6+ {[%clk 0:00:09.4]} 53... Kc2 {[%clk 0:00:18.3]} 54. Qg6+
{[%clk 0:00:08.8]} 54... Kc1 {[%clk 0:00:18]} 55. Qg1+ {[%clk 0:00:08.6]} 55...
Kd2 {[%clk 0:00:18.1]} 56. Qf2+ {[%clk 0:00:08.8]} 56... Kd1 {[%clk 0:00:18.4]}
57. Qf1+ {[%clk 0:00:08.9]} 57... Kc2 {[%clk 0:00:18.9]} 58. Qe2+ {[%clk
0:00:09]} 58... Kb1 {[%clk 0:00:18.8]} 59. Qd1+ {[%clk 0:00:09.2]} 59... Kb2
{[%clk 0:00:19]} 60. Qe2+ {[%clk 0:00:09.5]} 60... Ka1 {[%clk 0:00:18.9]} 61.
Qd1+ {[%clk 0:00:09.6]} 61... Ka2 {[%clk 0:00:19.1]} 62. Qe2+ {[%clk 0:00:09.9]}
62... Kb3 {[%clk 0:00:13.1]} 63. Qb5+ {[%clk 0:00:09.8]} 63... Kc2 {[%clk
0:00:06.9]} 64. Qf5+ {[%clk 0:00:09.6]} 64... Kd2 {[%clk 0:00:06.3]} 65. Qf2+
{[%clk 0:00:09.3]} 65... Kd1 {[%clk 0:00:06.8]} 66. Qf1+ {[%clk 0:00:09.1]}
66... Kc2 {[%clk 0:00:06.9]} 67. Qe2+ {[%clk 0:00:09.4]} 67... Kb1 {[%clk
0:00:07.4]} 68. Qd1+ {[%clk 0:00:09.3]} 68... Kb2 {[%clk 0:00:07.8]} 69. Qe2+
{[%clk 0:00:09.9]} 69... Ka1 {[%clk 0:00:07.8]} 70. Qd1+ {[%clk 0:00:10]} 70...
Ka2 {[%clk 0:00:08.3]} 71. Qe2+ {[%clk 0:00:10.5]} 71... Qb2 {[%clk 0:00:08.8]}
72. Qc4+ {[%clk 0:00:10.7]} 72... Ka1 {[%clk 0:00:08.7]} 73. Qf1+ {[%clk
0:00:11.1]} 73... Ka2 {[%clk 0:00:08.4]} 74. Qc4+ {[%clk 0:00:11.2]} 74... Kb1
{[%clk 0:00:08.6]} 75. Qf1+ {[%clk 0:00:11.5]} 75... Kc2 {[%clk 0:00:08]} 76.
Qe2+ {[%clk 0:00:11.9]} 76... Kb3 {[%clk 0:00:07.9]} 77. Qxb2+ {[%clk
0:00:11.4]} 77... axb2 {[%clk 0:00:08.4]} 78. h8=Q {[%clk 0:00:11.8]} 78... b1=Q
{[%clk 0:00:08.8]} 79. Qb8+ {[%clk 0:00:11.8]} 79... Kc2 {[%clk 0:00:09.1]} 80.
Qh2+ {[%clk 0:00:11.6]} 80... Kc3 {[%clk 0:00:08.2]} 81. Qg3+ {[%clk 0:00:11.6]}
81... Kb4 {[%clk 0:00:08.3]} 82. Qb8+ {[%clk 0:00:11.2]} 82... Kc3 {[%clk
0:00:08.4]} 83. Qxb1 {[%clk 0:00:12.1]} 1-0

[Event "Late-Titled-Tuesday-Blitz-September-26-2023"]
[Site "Chess.com"]
[Date "2023.09.26"]
[Round "3"]
[White "Aariow"]
[Black "Kombinator01"]
[Result "0-1"]
[WhiteElo "2570"]
[BlackElo "2417"]
[TimeControl "180+1"]
[EndTime "14:29:44 PDT"]
[Termination "Kombinator01 won by checkmate"]

1. d4 {[%clk 0:02:54.7]} 1... Nf6 {[%clk 0:02:58.7]} 2. c4 {[%clk 0:02:55.1]}
2... g6 {[%clk 0:02:58.9]} 3. Nc3 {[%clk 0:02:55.4]} 3... d5 {[%clk 0:02:59.5]}
4. cxd5 {[%clk 0:02:56.3]} 4... Nxd5 {[%clk 0:03:00.1]} 5. Bd2 {[%clk
0:02:56.9]} 5... Nb6 {[%clk 0:02:59.5]} 6. e3 {[%clk 0:02:57.1]} 6... Bg7 {[%clk
0:02:59.8]} 7. f4 {[%clk 0:02:57.9]} 7... O-O {[%clk 0:02:59.7]} 8. Nf3 {[%clk
0:02:58.6]} 8... N8d7 {[%clk 0:02:53.9]} 9. a4 {[%clk 0:02:47.8]} 9... a5 {[%clk
0:02:49.3]} 10. Ne4 {[%clk 0:02:24.1]} 10... f5 {[%clk 0:02:34.3]} 11. Neg5
{[%clk 0:02:14]} 11... Nf6 {[%clk 0:02:24.8]} 12. Rc1 {[%clk 0:02:13.3]} 12...
h6 {[%clk 0:02:23.2]} 13. Nh3 {[%clk 0:02:13]} 13... Ne4 {[%clk 0:02:18.7]} 14.
Bd3 {[%clk 0:02:11.5]} 14... c5 {[%clk 0:02:15.2]} 15. Qb3+ {[%clk 0:01:56.7]}
15... Nd5 {[%clk 0:01:56.9]} 16. dxc5 {[%clk 0:01:13.6]} 16... Be6 {[%clk
0:01:53.7]} 17. Qc2 {[%clk 0:00:37]} 17... Rc8 {[%clk 0:01:41.9]} 18. Bxe4
{[%clk 0:00:32.8]} 18... fxe4 {[%clk 0:01:42.8]} 19. Qxe4 {[%clk 0:00:33.3]}
19... Bf5 {[%clk 0:01:43.4]} 20. Qc4 {[%clk 0:00:31.7]} 20... e6 {[%clk
0:01:08.8]} 21. e4 {[%clk 0:00:24.1]} 21... Bxh3 {[%clk 0:01:08.9]} 22. gxh3
{[%clk 0:00:20.6]} 22... Nxf4 {[%clk 0:01:09.5]} 23. Bxf4 {[%clk 0:00:12]} 23...
Rxf4 {[%clk 0:01:10.4]} 24. Qxe6+ {[%clk 0:00:12]} 24... Kh7 {[%clk 0:01:11.1]}
25. O-O {[%clk 0:00:07.3]} 25... Qe8 {[%clk 0:01:05.4]} 26. Qxe8 {[%clk
0:00:03.1]} 26... Rxe8 {[%clk 0:01:06.3]} 27. e5 {[%clk 0:00:03.5]} 27... Rxa4
{[%clk 0:00:57.2]} 28. Kg2 {[%clk 0:00:03.9]} 28... Rb4 {[%clk 0:00:56.6]} 29.
Rc2 {[%clk 0:00:03.9]} 29... Re4 {[%clk 0:00:52.3]} 30. c6 {[%clk 0:00:02]}
30... bxc6 {[%clk 0:00:49.9]} 31. Rxc6 {[%clk 0:00:02.9]} 31... Re2+ {[%clk
0:00:47.4]} 32. Rf2 {[%clk 0:00:02.5]} 32... Rxf2+ {[%clk 0:00:48.1]} 33. Kxf2
{[%clk 0:00:03.4]} 33... Bxe5 {[%clk 0:00:48.7]} 34. Rc5 {[%clk 0:00:03.2]}
34... Bxb2 {[%clk 0:00:43.2]} 35. Rxa5 {[%clk 0:00:03.3]} 35... Bg7 {[%clk
0:00:43.8]} 36. Ra7 {[%clk 0:00:03.1]} 36... Kg8 {[%clk 0:00:42.4]} 37. Kg2
{[%clk 0:00:02.4]} 37... Rb8 {[%clk 0:00:41.9]} 38. Kg3 {[%clk 0:00:02.6]} 38...
Bf8 {[%clk 0:00:40.3]} 39. h4 {[%clk 0:00:02.8]} 39... Bd6+ {[%clk 0:00:39.7]}
40. Kh3 {[%clk 0:00:01.5]} 40... Rb3 {[%clk 0:00:39.4]} 41. Kg4 {[%clk 0:00:02]}
41... h5+ {[%clk 0:00:34.5]} 42. Kg5 {[%clk 0:00:02.2]} 42... Rxf3 {[%clk
0:00:31.9]} 43. Kxg6 {[%clk 0:00:02.5]} 43... Bf8 {[%clk 0:00:27.6]} 44. Kxh5
{[%clk 0:00:02.5]} 44... Rf6 {[%clk 0:00:27.5]} 45. Kg5 {[%clk 0:00:02.7]} 45...
Rb6 {[%clk 0:00:27.8]} 46. h5 {[%clk 0:00:02.7]} 46... Bg7 {[%clk 0:00:28.3]}
47. h4 {[%clk 0:00:02.3]} 47... Kh7 {[%clk 0:00:28.1]} 48. h6 {[%clk 0:00:02.4]}
48... Rxh6 {[%clk 0:00:27.9]} 49. h5 {[%clk 0:00:03]} 49... Rb6 {[%clk
0:00:27.9]} 50. Rc7 {[%clk 0:00:03.1]} 50... Rb5+ {[%clk 0:00:27.8]} 51. Kg4
{[%clk 0:00:03.8]} 51... Kh6 {[%clk 0:00:27.7]} 52. Rc6+ {[%clk 0:00:04.4]}
52... Kh7 {[%clk 0:00:28.2]} 53. Rc7 {[%clk 0:00:05.2]} 53... Rd5 {[%clk
0:00:25.6]} 54. Rb7 {[%clk 0:00:04.2]} 54... Rd6 {[%clk 0:00:26]} 55. Ra7 {[%clk
0:00:04.3]} 55... Rb6 {[%clk 0:00:25.7]} 56. Rc7 {[%clk 0:00:04.4]} 56... Kh6
{[%clk 0:00:26.1]} 57. Rc4 {[%clk 0:00:03.5]} 57... Bf6 {[%clk 0:00:25.4]} 58.
Re4 {[%clk 0:00:04]} 58... Rd6 {[%clk 0:00:23.8]} 59. Rf4 {[%clk 0:00:04.5]}
59... Be5 {[%clk 0:00:23.8]} 60. Rc4 {[%clk 0:00:05.2]} 60... Bd4 {[%clk
0:00:23.9]} 61. Rb4 {[%clk 0:00:05.3]} 61... Bc5 {[%clk 0:00:24.1]} 62. Rc4
{[%clk 0:00:05.8]} 62... Rd5 {[%clk 0:00:23.8]} 63. Re4 {[%clk 0:00:06.1]} 63...
Rg5+ {[%clk 0:00:23.9]} 64. Kf4 {[%clk 0:00:04.4]} 64... Kxh5 {[%clk 0:00:22.5]}
65. Rc4 {[%clk 0:00:01.6]} 65... Bd6+ {[%clk 0:00:22.2]} 66. Kf3 {[%clk
0:00:01.9]} 66... Rf5+ {[%clk 0:00:22.3]} 67. Ke4 {[%clk 0:00:02.1]} 67... Re5+
{[%clk 0:00:20.6]} 68. Kd4 {[%clk 0:00:02.6]} 68... Rg5 {[%clk 0:00:18.9]} 69.
Rc6 {[%clk 0:00:03.3]} 69... Be7 {[%clk 0:00:19.1]} 70. Re6 {[%clk 0:00:03.3]}
70... Bd8 {[%clk 0:00:18.3]} 71. Re8 {[%clk 0:00:03.9]} 71... Bb6+ {[%clk
0:00:18.6]} 72. Kc4 {[%clk 0:00:04.7]} 72... Kg4 {[%clk 0:00:18.9]} 73. Re4+
{[%clk 0:00:05.1]} 73... Kf3 {[%clk 0:00:18.5]} 74. Re6 {[%clk 0:00:05.9]} 74...
Be3 {[%clk 0:00:16.8]} 75. Rf6+ {[%clk 0:00:06.5]} 75... Ke2 {[%clk 0:00:16.1]}
76. Re6 {[%clk 0:00:06.5]} 76... Rc5+ {[%clk 0:00:16.6]} 77. Kb4 {[%clk
0:00:07]} 77... Rc8 {[%clk 0:00:16.9]} 78. Re7 {[%clk 0:00:06.9]} 78... Kd3
{[%clk 0:00:17.1]} 79. Rd7+ {[%clk 0:00:06.7]} 79... Bd4 {[%clk 0:00:17.6]} 80.
Kb5 {[%clk 0:00:04.3]} 80... Rc5+ {[%clk 0:00:17.4]} 81. Kb4 {[%clk 0:00:04.3]}
81... Rc6 {[%clk 0:00:18]} 82. Rb7 {[%clk 0:00:03.3]} 82... Rc4+ {[%clk
0:00:16.7]} 83. Kb3 {[%clk 0:00:03]} 83... Rc1 {[%clk 0:00:16.2]} 84. Rd7 {[%clk
0:00:02.5]} 84... Rb1+ {[%clk 0:00:16.5]} 85. Ka3 {[%clk 0:00:03.2]} 85... Kc4
{[%clk 0:00:15.9]} 86. Rc7+ {[%clk 0:00:02.6]} 86... Bc5+ {[%clk 0:00:16.2]} 87.
Ka2 {[%clk 0:00:03.3]} 87... Rb8 {[%clk 0:00:15.5]} 88. Rc6 {[%clk 0:00:03.8]}
88... Kb4 {[%clk 0:00:14]} 89. Rc7 {[%clk 0:00:03.4]} 89... Bd4 {[%clk
0:00:14.2]} 90. Rd7 {[%clk 0:00:02]} 90... Bc3 {[%clk 0:00:12.9]} 91. Rc7 {[%clk
0:00:01.6]} 91... Ra8+ {[%clk 0:00:13.2]} 92. Kb1 {[%clk 0:00:02.2]} 92... Kb3
{[%clk 0:00:13.7]} 93. Rb7+ {[%clk 0:00:02.7]} 93... Bb4 {[%clk 0:00:14.1]} 94.
Rh7 {[%clk 0:00:03.5]} 94... Rg8 {[%clk 0:00:14.1]} 95. Rh3+ {[%clk 0:00:03.2]}
95... Bc3 {[%clk 0:00:14.7]} 96. Rh1 {[%clk 0:00:04]} 96... Ra8 {[%clk 0:00:15]}
97. Rh3 {[%clk 0:00:02.7]} 97... Ra1# {[%clk 0:00:15.6]} 0-1